bitfinex/quotes_SOLUSD_20250814
["timestamp","ask_amount","ask_price","bid_price","bid_amount"]
[1755200494482,51.16848747,195.09,195.08,0.13643348]
[1755200494683,47.74407169,195.09,195.08,0.13643348]
[1755200495180,66.27470304,195.09,195.08,0.13643348]
[1755200495579,26.0,195.06,194.97,0.03]
[1755200495776,5.42823234,195.02,194.97,0.03]
[1755200495962,52.27621557,195.05,194.97,0.03]
[1755200495963,5.42823234,195.03,194.97,10.58697532]
[1755200496164,5.42823234,195.04,194.98,5.68823234]
[1755200497289,10.555463,195.04,194.98,5.68823234]
[1755200497586,11.245463,195.04,194.98,5.68823234]
[1755200498388,0.69,195.04,194.98,10.81685506]
[1755200499088,5.1269468,195.05,194.99,5.42823234]
[1755200499283,11.24517914,195.05,194.99,5.42823234]
[1755200500371,5.8169468,195.05,194.99,5.42823234]
[1755200500690,11.24517914,195.05,194.99,5.42823234]
[1755200501592,5.8169468,195.05,195.0,5.42823234]
[1755200501768,0.69,195.04,195.0,5.42823234]
[1755200502095,0.69,195.04,194.97,0.03]
[1755200502269,5.42823234,195.03,194.97,5.45823234]
[1755200502591,0.69,195.02,194.97,5.45823234]
[1755200502798,0.69,195.02,194.99,0.03]
[1755200502972,0.69,195.01,194.99,0.03]
[1755200503170,5.12699578,195.05,194.99,0.03]
[1755200503171,0.69,195.0,194.99,0.03]
[1755200503585,5.81820512,195.0,194.99,0.03]
[1755200505570,0.69,195.0,194.99,0.03]
[1755200506178,5.12799411,195.01,194.99,0.03]
[1755200506697,5.81799411,195.01,194.99,0.03]
[1755200508412,0.69,195.01,194.99,0.03]
[1755200508588,36.48,195.02,194.99,0.03]
[1755200508791,0.69,195.01,194.99,0.03]
[1755200509173,0.69,195.0,194.99,0.03]
[1755200512607,37.17,195.02,194.99,0.03]
[1755200512911,0.69,195.01,194.99,0.03]
[1755200513685,36.48,195.02,194.99,0.03]
[1755200513686,36.48,195.02,195.0,5.42823234]
[1755200513899,0.06,195.09,195.01,5.42823234]
[1755200514106,0.69,195.07,195.03,5.42823234]
[1755200514294,37.19,195.07,195.03,5.42823234]
[1755200514598,37.19,195.07,195.05,5.42823234]
[1755200514816,36.5,195.07,195.05,5.42823234]
[1755200515726,37.19,195.07,195.05,5.42823234]
[1755200515906,0.69,195.06,195.0,5.12820512]
[1755200516228,0.69,195.06,195.02,5.42823234]
[1755200516403,0.69,195.05,195.02,5.42823234]
[1755200516604,0.69,195.04,195.02,5.42823234]
[1755200517003,37.19,195.07,195.03,5.42823234]
[1755200517204,37.19,195.07,195.04,5.42823234]
[1755200517728,37.19,195.07,195.03,5.42823234]
[1755200517933,0.69,195.06,195.03,5.42823234]
[1755200519413,41.62646269,195.07,195.03,5.42823234]
[1755200519618,0.69,195.06,195.03,5.42823234]
[1755200519830,0.69,195.05,195.0,5.42823234]
[1755200520336,5.42823234,195.03,194.99,0.03]
[1755200520502,5.42823234,195.06,195.0,5.42823234]
[1755200520698,36.48,195.04,195.0,5.42823234]
[1755200520924,36.48,195.04,194.99,0.03]
[1755200520925,6.11823234,195.03,194.99,0.03]
[1755200521125,5.12794215,195.01,194.99,0.03]
[1755200521426,0.69,195.01,194.99,0.03]
[1755200521803,5.12773986,195.02,194.99,0.03]
[1755200522003,0.69,195.0,194.99,0.03]
[1755200522197,5.81773986,195.02,194.99,0.03]
[1755200522433,5.8180146,195.01,194.99,0.03]
[1755200522828,0.69,195.01,194.99,0.03]
[1755200523326,10.55567496,195.03,194.99,0.03]
[1755200523625,36.48,195.04,194.99,5.45823234]
[1755200523828,36.48,195.04,195.02,5.42823234]
[1755200524126,37.17,195.07,195.02,5.42823234]
[1755200524313,37.17,195.07,195.04,5.42823234]
[1755200524704,36.48,195.07,195.04,5.42823234]
[1755200524914,0.69,195.06,195.03,5.42823234]
[1755200525227,0.69,195.05,195.0,5.12813284]
[1755200525524,0.69,195.05,195.01,5.42823234]
[1755200526929,5.12679263,195.06,195.02,5.42823234]
[1755200527228,5.81679263,195.06,195.02,5.42823234]
[1755200528033,0.69,195.06,195.02,5.42823234]
[1755200528207,5.81632073,195.08,195.03,5.42823234]
[1755200528528,41.60632073,195.08,195.03,5.42823234]
[1755200528711,0.69,195.07,195.02,10.55587552]
[1755200529733,0.69,195.07,195.03,5.42823234]
[1755200529933,36.48,195.08,195.04,5.42823234]
[1755200530135,3.43939446,195.07,195.04,0.26]
[1755200530345,0.06,195.09,195.02,5.12764318]
[1755200530346,0.06,195.09,195.06,5.42823234]
[1755200530512,0.06,195.09,195.08,5.42823234]
[1755200531116,3.50355936,195.09,195.08,5.42823234]
[1755200531520,0.06,195.09,195.08,5.42823234]
[1755200531853,0.06,195.09,195.06,5.12657568]
[1755200532039,0.06,195.09,195.07,5.42823234]
[1755200532239,0.06,195.09,195.06,5.12657568]
[1755200532417,0.06,195.09,195.07,5.42823234]
[1755200534424,0.06,195.09,195.07,5.53626549]
[1755200534833,0.06,195.09,195.06,5.42823234]
[1755200535136,0.69,195.08,195.06,5.42823234]
[1755200536730,0.06,195.09,195.06,5.42823234]
[1755200536930,0.69,195.08,195.06,5.42823234]
[1755200537444,0.06,195.09,195.06,5.42823234]
[1755200537747,0.75,195.09,195.06,5.42823234]
[1755200538245,0.06,195.09,195.07,5.42823234]
[1755200538432,0.75,195.09,195.06,5.42823234]
[1755200538950,0.75,195.09,195.07,5.42823234]
[1755200539344,0.06,195.09,195.07,5.42823234]
[1755200539543,0.75,195.09,195.07,5.42823234]
[1755200539960,0.06,195.09,195.07,5.42823234]
[1755200540443,0.75,195.09,195.05,5.53616396]
[1755200541133,0.75,195.09,195.06,5.42823234]
[1755200541450,0.06,195.09,195.06,5.42823234]
[1755200541758,0.06,195.09,195.05,0.10793162]
[1755200541759,4.13201289,195.08,195.05,0.10793162]
[1755200541930,4.13201289,195.07,195.05,0.10793162]
[1755200542134,0.69,195.06,195.05,0.10793162]
[1755200543956,4.13224183,195.06,195.05,0.10793162]
[1755200544249,9.2588834,195.06,195.05,0.10793162]
[1755200544450,14.68711574,195.06,195.05,0.10793162]
[1755200544626,9.2588834,195.06,195.05,0.10793162]
[1755200545862,14.68711574,195.06,195.05,0.10793162]
[1755200546035,29.79333131,195.06,195.05,0.10793162]
[1755200548649,29.79333131,195.06,195.05,1e-08]
[1755200548932,34.08269393,195.06,195.05,1e-08]
[1755200549739,29.79333131,195.06,195.05,1e-08]
[1755200549935,34.08269393,195.06,195.05,1e-08]
[1755200550151,29.79333131,195.06,195.05,1e-08]
[1755200550441,34.08269393,195.06,195.05,1e-08]
[1755200550661,29.79333131,195.06,195.05,1e-08]
[1755200550859,24.36509897,195.06,195.05,1e-08]
[1755200551073,29.79333131,195.06,195.05,1e-08]
[1755200551737,34.08269393,195.06,195.05,1e-08]
[1755200552842,34.08269393,195.06,195.05,0.03000001]
[1755200553555,41.10621557,195.02,195.01,0.03]
[1755200553753,87.10670361,195.02,195.01,0.03]
[1755200554353,20.53444791,195.0,194.99,0.03]
[1755200554570,61.10670361,195.0,194.99,0.03]
[1755200555072,66.23490873,195.0,194.99,0.03]
[1755200559574,62.79265303,195.0,194.99,0.03]
[1755200559777,66.23193363,195.0,194.99,0.03]
[1755200559976,39.8992806,195.0,194.99,0.03]
[1755200560179,5.42823234,195.04,194.99,0.29]
[1755200560356,39.89877177,195.03,194.99,5.71823234]
[1755200560681,36.46,195.03,195.0,0.26]
[1755200561379,36.46,195.03,195.01,5.68823234]
[1755200561582,36.46,195.03,195.02,5.68823234]
[1755200561959,0.06,195.08,195.02,5.68823234]
[1755200562177,39.89824876,195.07,195.04,5.42823234]
[1755200562388,36.46,195.07,195.03,5.42823234]
[1755200562767,36.46,195.07,195.03,5.68823234]
[1755200563281,3.43812126,195.06,195.02,10.55575115]
[1755200563492,3.43812126,195.06,195.02,10.81575115]
[1755200563669,36.46,195.05,195.02,10.81575115]
[1755200565380,36.46,195.05,195.01,5.42823234]
[1755200565581,4.10897382,195.04,194.99,5.45823234]
[1755200565766,36.46,195.03,194.99,5.45823234]
[1755200565966,37.13,195.03,194.99,5.45823234]
[1755200566165,36.46,195.03,194.99,5.71823234]
[1755200567287,36.46,195.03,195.0,5.42823234]
[1755200567877,36.46,195.03,194.99,5.71823234]
[1755200568264,42.2574352,195.03,194.99,0.03]
[1755200568961,0.67,195.02,194.99,0.03]
[1755200569177,41.88823234,195.01,194.99,0.03]
[1755200569572,0.67,195.0,194.99,0.03]
[1755200570479,36.46,195.01,194.99,0.03]
[1755200570674,37.13,195.01,194.99,0.03]
[1755200571066,0.67,195.0,194.99,0.03]
[1755200571382,9.53770157,195.0,194.99,0.03]
[1755200572166,4.10946923,195.0,194.99,0.03]
[1755200573659,5.79820512,195.0,194.99,0.03]
[1755200574581,9.23668931,195.0,194.99,0.03]
[1755200574788,47.01618988,195.01,194.99,0.03]
[1755200574986,42.55823234,195.01,194.99,0.03]
[1755200575789,47.68626587,195.01,194.99,0.03]
[1755200576296,0.67,195.0,194.99,0.03]
[1755200576791,5.79820512,195.0,194.99,0.03]
[1755200577287,11.22643746,195.0,194.99,0.03]
[1755200577487,14.6660739,195.0,194.99,0.03]
[1755200579289,14.66684396,195.0,194.99,0.03]
[1755200579470,9.23861162,195.0,194.99,0.03]
[1755200579792,5.79820512,195.0,194.99,0.03]
[1755200579990,0.67,195.0,194.99,0.03]
[1755200580178,41.88823234,195.01,194.99,0.03]
[1755200580179,36.46,195.01,194.99,0.03]
[1755200580373,42.55823234,195.01,194.99,0.03]
[1755200580579,36.46,195.01,194.99,0.03]
[1755200580776,36.44,195.0,194.99,0.03]
[1755200582196,46.00015461,195.0,194.99,0.03]
[1755200582576,40.57192227,195.0,194.99,0.03]
[1755200582792,36.44,195.0,194.99,0.03]
[1755200582981,40.57255542,195.0,194.99,0.03]
[1755200583507,39.88255542,195.0,194.99,0.03]
[1755200584595,40.57255542,195.0,194.99,0.03]
[1755200585569,45.70076054,195.0,194.99,0.03]
[1755200587194,40.57255542,195.0,194.99,0.03]
[1755200587376,39.88255542,195.0,194.99,0.03]
[1755200589581,36.44,195.0,194.99,0.03]
[1755200590499,39.88907188,195.0,194.99,0.03]
[1755200591201,5.18748253,195.03,194.99,5.71823234]
[1755200591202,0.06,195.03,194.99,5.71823234]
[1755200591515,0.06,195.03,195.02,5.42823234]
[1755200591889,0.06,195.03,195.01,5.42823234]
[1755200593720,40.57784729,195.02,194.99,0.03]
[1755200593889,3.44784729,195.01,195.0,5.42823234]
[1755200594097,36.44,195.01,195.0,5.68823234]
[1755200594418,36.44,195.01,194.99,0.03]
[1755200594620,37.13,195.01,194.99,0.03]
[1755200594800,4.13798077,195.0,194.99,0.03]
[1755200595004,0.69,195.0,194.99,0.03]
[1755200595318,4.13798157,195.0,194.99,0.03]
[1755200595895,0.69,195.0,194.99,0.03]
[1755200596402,4.13804903,195.0,194.99,0.03]
[1755200596609,0.69,195.0,194.99,0.03]
[1755200596809,4.13796228,195.0,194.99,0.03]
[1755200597009,36.44,195.01,194.99,0.03]
[1755200599313,37.13,195.01,194.99,0.03]
[1755200599506,0.69,195.0,194.99,0.03]
[1755200599701,4.13826377,195.0,194.99,0.03]
[1755200600417,3.44826377,195.0,194.99,0.03]
[1755200600724,36.44,195.01,194.99,5.45823234]
[1755200601114,36.44,195.01,194.99,0.03]
[1755200601314,37.13,195.01,194.99,0.03]
[1755200603108,3.44926868,195.0,194.99,0.03]
[1755200603311,3.44921903,195.0,194.99,0.03]
[1755200603509,4.13921903,195.0,194.99,0.03]
[1755200605408,14.69565649,195.0,194.99,0.03]
[1755200605626,9.26742415,195.0,194.99,0.03]
[1755200605934,4.13921903,195.0,194.99,0.03]
[1755200607314,9.26742415,195.0,194.99,0.03]
[1755200607723,14.69565649,195.0,194.99,0.03]
[1755200607913,9.26742415,195.0,194.99,0.03]
[1755200608715,14.69565649,195.0,194.99,0.03]
[1755200610017,9.26742415,195.0,194.99,0.03]
[1755200611356,14.69565649,195.0,194.99,0.03]
[1755200611518,34.11339585,195.0,194.99,0.03]
[1755200612328,29.80187206,195.0,194.99,0.03]
[1755200614230,34.11339585,195.0,194.99,0.03]
[1755200615313,29.80187206,195.0,194.99,0.03]
[1755200616740,34.11339585,195.0,194.99,0.03]
[1755200617923,28.68516351,195.0,194.99,0.03]
[1755200618142,29.80187206,195.0,194.99,0.03]
[1755200618743,34.11339585,195.0,194.99,0.03]
[1755200618923,29.80187206,195.0,194.99,0.03]
[1755200619926,24.37363972,195.0,194.99,0.03]
[1755200620124,29.80187206,195.0,194.99,0.03]
[1755200622340,15.10621557,194.99,194.98,0.03]
[1755200622545,65.41662256,194.99,194.98,0.03]
[1755200622747,63.15679194,194.99,194.98,0.03]
[1755200623329,67.46918142,194.99,194.98,0.03]
[1755200623724,65.41605642,194.99,194.98,0.03]
[1755200624125,67.46918042,194.99,194.98,0.03]
[1755200624326,72.59764854,194.99,194.98,0.03]
[1755200630765,26.73679094,194.99,194.98,0.03]
[1755200630970,3.44921903,194.99,194.98,0.03]
[1755200631141,39.86921903,194.99,194.98,0.03]
[1755200631662,40.56921903,194.99,194.98,0.03]
[1755200631847,39.86921903,194.99,194.98,0.03]
[1755200632352,44.99768715,194.99,194.98,0.03]
[1755200632543,45.69768715,194.99,194.98,0.03]
[1755200632748,40.56921903,194.99,194.98,0.03]
[1755200633365,39.86921903,194.99,194.98,0.03]
[1755200634562,44.99768715,194.99,194.98,0.03]
[1755200634772,39.86921903,194.99,194.98,0.03]
[1755200637261,39.92921903,194.99,194.98,0.03]
[1755200637467,45.05768715,194.99,194.98,0.03]
[1755200639864,51.18591949,194.99,194.98,0.03]
[1755200640072,66.29213506,194.99,194.98,0.03]
[1755200640258,41.10621557,194.96,194.95,0.03]
[1755200640578,15.10621557,194.95,194.91,0.03]
[1755200640749,41.10621557,194.93,194.91,0.03]
[1755200641073,54.48696225,194.93,194.86,0.03]
[1755200641266,41.10621557,194.9,194.86,0.03]
[1755200641474,61.05366694,194.9,194.86,0.03]
[1755200641951,66.18450326,194.9,194.86,0.03]
[1755200642152,68.23847126,194.9,194.86,0.03]
[1755200645271,34.87745137,194.9,194.87,0.44]
[1755200645454,65.84921903,194.9,194.89,0.44]
[1755200645653,7.48188334,194.93,194.89,0.44]
[1755200645863,36.4,194.92,194.89,0.44]
[1755200646119,41.82823234,194.92,194.89,0.03]
[1755200646289,5.42823234,194.9,194.89,0.03]
[1755200646453,45.94112426,194.9,194.89,0.03]
[1755200646654,47.99509226,194.9,194.89,0.03]
[1755200647360,47.32509226,194.9,194.89,0.03]
[1755200647564,45.27112426,194.9,194.89,0.03]
[1755200648361,3.44289192,194.9,194.89,0.44]
[1755200648566,26.0,194.91,194.89,0.44]
[1755200648775,36.4,194.9,194.89,0.44]
[1755200649682,36.4,194.9,194.89,0.03]
[1755200650571,36.4,194.9,194.89,0.44]
[1755200650772,26.0,194.92,194.89,0.44]
[1755200650977,36.4,194.91,194.9,0.41]
[1755200651177,15.10621557,194.97,194.9,5.83823234]
[1755200651472,15.10621557,194.97,194.89,0.03]
[1755200651473,39.84134199,194.96,194.93,5.42823234]
[1755200651696,36.4,194.95,194.94,0.41]
[1755200652392,39.84165509,194.95,194.94,0.41]
[1755200652600,39.84165509,194.95,194.94,5.53978352]
[1755200652777,3.44165509,194.95,194.94,5.53978352]
[1755200653093,36.4,194.96,194.94,5.53978352]
[1755200653394,0.06,194.99,194.94,10.96801586]
[1755200653702,0.06,194.99,194.96,5.42823234]
[1755200653867,0.06,194.99,194.95,5.83823234]
[1755200654397,39.84173964,194.98,194.94,5.42823234]
[1755200654704,36.4,194.98,194.93,5.42823234]
[1755200655004,4.11187686,194.97,194.91,5.83823234]
[1755200655179,36.4,194.96,194.92,5.42823234]
[1755200655499,36.4,194.96,194.92,5.83823234]
[1755200655680,36.4,194.96,194.92,10.55842352]
[1755200655871,36.4,194.96,194.93,5.83823234]
[1755200656279,36.4,194.96,194.93,0.41]
[1755200657087,36.4,194.96,194.93,5.83823234]
[1755200657406,36.4,194.96,194.94,0.41]
[1755200658081,36.4,194.96,194.92,5.54026627]
[1755200658283,36.4,194.96,194.92,10.96849861]
[1755200659191,36.4,194.96,194.92,5.54026627]
[1755200660679,36.4,194.96,194.89,5.45823234]
[1755200660680,4.11289539,194.95,194.89,5.45823234]
[1755200660879,45.25112773,194.94,194.89,5.16104131]
[1755200661204,8.87143845,194.93,194.89,5.16104131]
[1755200661402,41.80823234,194.94,194.89,0.03]
[1755200661608,36.38,194.94,194.9,0.41]
[1755200661980,36.38,194.94,194.9,5.42823234]
[1755200662305,36.38,194.94,194.91,5.83823234]
[1755200662474,36.38,194.94,194.91,5.42823234]
[1755200662678,36.38,194.94,194.92,0.41]
[1755200663093,11.2270014,194.98,194.92,0.41]
[1755200663094,36.38,194.96,194.92,10.96831086]
[1755200663297,3.44302343,194.95,194.92,10.96831086]
[1755200663482,36.38,194.96,194.92,10.96831086]
[1755200663688,3.44314739,194.95,194.92,10.96831086]
[1755200664002,36.38,194.96,194.92,10.96831086]
[1755200664307,36.38,194.96,194.93,5.83823234]
[1755200664718,36.38,194.96,194.94,5.42823234]
[1755200664905,36.38,194.96,194.93,5.42823234]
[1755200665116,36.38,194.96,194.93,5.13004062]
[1755200665306,37.05,194.96,194.93,5.13004062]
[1755200665506,37.05,194.96,194.92,10.55846409]
[1755200665733,9.54146577,194.95,194.89,5.45823234]
[1755200665907,9.54146577,194.94,194.89,0.03]
[1755200666092,47.60763378,194.96,194.9,5.42823234]
[1755200666429,3.44369636,194.95,194.9,5.42823234]
[1755200666597,3.44369636,194.94,194.89,10.99923781]
[1755200666796,42.47823234,194.96,194.9,0.41]
[1755200667014,3.44362908,194.95,194.91,5.13057308]
[1755200667196,0.67,194.95,194.91,5.13057308]
[1755200669109,0.67,194.95,194.91,4.63057308]
[1755200670021,0.67,194.95,194.91,4.66057308]
[1755200671424,36.44,194.96,194.92,0.41]
[1755200671718,3.44357087,194.95,194.92,0.41]
[1755200671917,37.12,194.96,194.91,10.08880542]
[1755200672124,3.44357166,194.95,194.91,10.49880542]
[1755200672310,37.12,194.96,194.91,10.49880542]
[1755200672628,3.44356978,194.95,194.91,10.49880542]
[1755200672825,37.12,194.96,194.91,10.49880542]
[1755200673133,3.44357057,194.95,194.91,10.49880542]
[1755200673325,37.12,194.96,194.91,10.49880542]
[1755200673633,9.55174861,194.95,194.91,0.03]
[1755200673797,0.68,194.94,194.91,0.03]
[1755200674424,0.68,194.94,194.91,5.16052799]
[1755200674611,37.12,194.96,194.91,5.16052799]
[1755200674820,4.12352163,194.95,194.91,5.16052799]
[1755200675034,0.68,194.95,194.91,5.16052799]
[1755200681728,0.68,194.94,194.91,5.16052799]
[1755200682311,0.68,194.93,194.91,5.16052799]
[1755200682512,0.68,194.93,194.91,0.03]
[1755200683836,0.68,194.95,194.91,0.03]
[1755200684038,3.44603725,194.94,194.91,0.03]
[1755200684344,0.68,194.95,194.91,0.03]
[1755200684523,3.44639808,194.94,194.91,0.03]
[1755200684732,0.68,194.94,194.91,0.03]
[1755200685750,0.68,194.94,194.91,5.16057308]
[1755200688945,0.68,194.93,194.91,0.03]
[1755200689129,0.68,194.92,194.91,0.03]
[1755200690955,4.13099635,194.92,194.91,0.03]
[1755200691174,45.91922869,194.92,194.91,0.03]
[1755200691343,51.04953856,194.92,194.91,0.03]
[1755200694060,40.49099635,194.92,194.91,0.03]
[1755200694968,45.91922869,194.92,194.91,0.03]
[1755200700563,66.15575413,194.92,194.91,0.03]
[1755200700770,66.15575413,194.92,194.89,0.03]
[1755200701085,8.46799389,194.91,194.89,0.03]
[1755200701261,3.45099635,194.9,194.89,0.03]
[1755200701577,36.36,194.92,194.89,0.44]
[1755200701779,3.45288993,194.91,194.89,0.03]
[1755200701999,36.36,194.92,194.89,5.86823234]
[1755200702280,3.4528478,194.91,194.89,5.86823234]
[1755200702489,36.36,194.92,194.89,5.86823234]
[1755200702650,3.45310119,194.91,194.9,0.41]
[1755200702849,3.45310119,194.91,194.9,5.54083632]
[1755200703186,3.45310119,194.91,194.89,10.58925445]
[1755200703482,36.36,194.92,194.89,10.58925445]
[1755200703691,3.4532827,194.91,194.89,10.58925445]
[1755200703866,36.36,194.92,194.89,10.58925445]
[1755200704189,3.45328349,194.91,194.89,10.58925445]
[1755200704493,36.36,194.92,194.89,10.99925445]
[1755200704657,3.45336972,194.91,194.89,10.99925445]
[1755200704996,36.36,194.92,194.9,5.42823234]
[1755200705170,3.45336892,194.91,194.9,5.42823234]
[1755200706078,4.15336892,194.91,194.89,5.16102211]
[1755200706293,36.36,194.92,194.89,5.16102211]
[1755200706597,36.34,194.93,194.91,10.55880542]
[1755200706767,3.45337863,194.92,194.91,10.55880542]
[1755200711401,3.45337863,194.92,194.91,5.42823234]
[1755200711899,3.45337863,194.92,194.91,5.83823234]
[1755200712305,3.45337863,194.92,194.91,5.42823234]
[1755200712697,3.45337863,194.92,194.91,10.55880542]
[1755200713001,36.34,194.94,194.91,10.96880542]
[1755200713173,36.4,194.96,194.93,5.42823234]
[1755200713379,3.45324675,194.95,194.93,5.42823234]
[1755200713579,3.45324675,194.94,194.93,5.42823234]
[1755200714175,3.45324675,194.94,194.92,0.41]
[1755200714375,0.06,194.96,194.93,5.83823234]
[1755200714581,0.06,194.96,194.94,5.42823234]
[1755200714878,0.06,194.96,194.94,10.55783264]
[1755200715108,0.06,194.96,194.89,0.03]
[1755200715109,4.15286207,194.95,194.92,5.42823234]
[1755200715313,3.45286207,194.94,194.92,5.42823234]
[1755200715485,3.45286207,194.93,194.92,5.42823234]
[1755200716102,0.7,194.94,194.92,5.42823234]
[1755200716601,4.15286446,194.93,194.92,5.42823234]
[1755200717303,4.15286446,194.93,194.9,10.55906866]
[1755200717484,4.15286446,194.92,194.9,10.55906866]
[1755200717679,0.7,194.91,194.9,5.42823234]
[1755200717888,5.12954868,194.95,194.89,10.58924918]
[1755200717889,10.55778102,194.95,194.89,10.58924918]
[1755200718110,0.7,194.92,194.89,10.58924918]
[1755200718301,3.45315722,194.91,194.89,10.58924918]
[1755200718608,0.7,194.92,194.89,10.58924918]
[1755200718779,3.45325279,194.91,194.89,10.58924918]
[1755200718978,0.7,194.92,194.89,10.58924918]
[1755200719179,3.4532539,194.91,194.89,10.58924918]
[1755200719379,0.76,194.92,194.89,10.58924918]
[1755200719603,4.15326501,194.91,194.89,0.03]
[1755200719802,4.15326501,194.9,194.89,0.03]
[1755200720505,3.45326501,194.9,194.89,0.03]
[1755200721581,0.06,194.92,194.89,5.86823234]
[1755200721782,0.76,194.92,194.89,0.03]
[1755200721991,0.7,194.91,194.89,5.45823234]
[1755200723517,0.7,194.91,194.89,10.5893292]
[1755200728824,0.06,194.92,194.89,5.45823234]
[1755200729018,3.45367041,194.91,194.89,5.45823234]
[1755200729204,0.76,194.92,194.89,5.45823234]
[1755200729517,3.45382226,194.91,194.89,5.45823234]
[1755200729722,0.76,194.92,194.89,5.45823234]
[1755200729894,3.45372116,194.91,194.89,5.45823234]
[1755200730089,0.76,194.92,194.89,5.45823234]
[1755200730294,3.45385393,194.91,194.89,5.45823234]
[1755200730489,0.06,194.92,194.89,5.45823234]
[1755200730689,4.13385504,194.91,194.89,5.45823234]
[1755200730888,0.68,194.91,194.89,5.45823234]
[1755200731723,3.4539048,194.9,194.89,5.45823234]
[1755200732091,3.4539048,194.9,194.89,10.58933193]
[1755200732616,3.4539048,194.9,194.89,5.45823234]
[1755200732918,4.1339048,194.9,194.89,0.03]
[1755200733116,41.10621557,194.89,194.87,0.03]
[1755200733414,15.10621557,194.85,194.75,2.053757]
[1755200733733,44.77298833,194.84,194.77,5.42823234]
[1755200733899,4.1339048,194.83,194.77,5.42823234]
[1755200734099,3.4539048,194.82,194.77,5.42823234]
[1755200734408,9.56213714,194.81,194.75,5.13473287]
[1755200734583,4.1339048,194.8,194.75,5.13473287]
[1755200734787,3.4539048,194.79,194.75,5.13473287]
[1755200734991,5.42823234,194.81,194.75,5.13473287]
[1755200735197,0.68,194.78,194.75,5.13473287]
[1755200735514,5.42823234,194.81,194.75,10.56296521]
[1755200735706,0.68,194.81,194.76,5.42823234]
[1755200736295,6.10823234,194.81,194.75,5.42823234]
[1755200736510,0.68,194.8,194.76,5.13445229]
[1755200736909,0.68,194.79,194.76,10.56268463]
[1755200737410,0.68,194.82,194.77,6.01823234]
[1755200737706,0.68,194.81,194.77,5.42823234]
[1755200737905,0.68,194.8,194.76,10.56268463]
[1755200738124,5.42823234,194.83,194.77,5.42823234]
[1755200738125,4.12273916,194.82,194.77,5.42823234]
[1755200738418,0.68,194.81,194.77,5.42823234]
[1755200738624,0.68,194.8,194.77,5.42823234]
[1755200739928,0.68,194.8,194.78,5.13399733]
[1755200740443,0.68,194.85,194.79,6.01823234]
[1755200740652,0.68,194.85,194.81,5.42823234]
[1755200740940,0.68,194.85,194.8,5.42823234]
[1755200741343,0.68,194.84,194.81,5.42823234]
[1755200741549,3.43844376,194.85,194.82,5.42823234]
[1755200741712,0.68,194.85,194.82,10.56092595]
[1755200741914,36.32,194.86,194.83,5.42823234]
[1755200742322,4.37908353,194.92,194.85,5.42823234]
[1755200742323,0.68,194.91,194.85,5.42823234]
[1755200742538,0.68,194.91,194.87,5.42823234]
[1755200742539,3.43736713,194.9,194.87,5.42823234]
[1755200742745,3.43736713,194.89,194.87,5.42823234]
[1755200743041,0.68,194.89,194.86,5.42823234]
[1755200743418,0.06,194.92,194.87,5.42823234]
[1755200743615,4.11718301,194.91,194.88,5.42823234]
[1755200743848,0.06,194.92,194.89,5.13109959]
[1755200744149,0.06,194.92,194.89,10.55933193]
[1755200744522,0.74,194.92,194.89,10.55933193]
[1755200745648,0.06,194.92,194.89,5.13109959]
[1755200745948,0.68,194.91,194.88,5.42823234]
[1755200746126,0.06,194.92,194.89,5.42823234]
[1755200746324,0.74,194.92,194.89,5.42823234]
[1755200746520,0.68,194.91,194.87,5.42823234]
[1755200747947,0.68,194.91,194.88,5.13136288]
[1755200748835,0.68,194.91,194.88,10.55959522]
[1755200751932,0.68,194.91,194.87,5.42823234]